fUSD/lending_fUSD_20250428
["ID","MTS","AMOUNT","RATE_DAILY","PERIOD"]
[359245756,1745866242252,-500.0,0.00020027,2]
[359245757,1745866242261,-150.0,0.00020027,2]
[359245758,1745866242271,-507.0,0.00020027,2]
[359245759,1745866242280,-519.8498121,0.00020027,2]
[359245760,1745866242290,-500.0,0.00020027,2]
[359245761,1745866242299,-500.0,0.00020027,2]
[359245762,1745866242308,-551.0,0.00020055,2]
[359245763,1745866242318,-634.40263361,0.00020055,2]
[359245764,1745866242328,-500.0,0.00020055,2]
[359245765,1745866242337,-200.0,0.00020055,2]
[359245766,1745866242347,-591.22573512,0.00020055,2]
[359245767,1745866242356,-200.0,0.00020055,2]
[359245768,1745866242366,-507.0,0.00020055,2]
[359245769,1745866242376,-500.0,0.00020055,2]
[359245770,1745866242386,-500.0,0.00020055,2]
[359245771,1745866242397,-151.0,0.00020082,2]
[359245772,1745866242406,-551.0,0.00020082,2]
[359245773,1745866242415,-642.62447159,0.00020082,2]
[359245774,1745866242424,-507.0,0.00020082,2]
[359245775,1745866242433,-500.0,0.00020082,2]
[359245776,1745866242443,-500.0,0.00020082,2]
[359245777,1745866242452,-304.29,0.000201,2]
[359245778,1745866242462,-150.0,0.000201,2]
[359245779,1745866242471,-800.38,0.000201,2]
[359245780,1745866242480,-800.38,0.000201,2]
[359245781,1745866242490,-551.0,0.0002011,2]
[359245782,1745866242500,-507.0,0.0002011,2]
[359245783,1745866242510,-500.0,0.0002011,2]
[359245784,1745866242521,-500.0,0.0002011,2]
[359245785,1745866242531,-151.0,0.0002011,2]
[359245786,1745866242540,-151.0,0.0002011,2]
[359245787,1745866242549,-151.0,0.0002011,2]
[359245788,1745866242558,-151.623821,0.0002011,2]
[359245789,1745866242567,-151.0,0.0002011,2]
[359245790,1745866242577,-151.0,0.0002011,2]
[359245791,1745866242586,-151.0,0.0002011,2]
[359245792,1745866242596,-151.0,0.0002011,2]
[359245793,1745866242605,-151.0,0.0002011,2]
[359245794,1745866242615,-151.0,0.0002011,2]
[359245795,1745866242624,-551.0,0.00020137,2]
[359245796,1745866242634,-507.0,0.00020137,2]
[359245797,1745866242643,-500.0,0.00020137,2]
[359245798,1745866242653,-500.0,0.00020137,2]
[359245799,1745866242662,-151.0,0.00020137,2]
[359245800,1745866242671,-151.0,0.00020137,2]
[359245801,1745866242681,-1673.18068747,0.0002015,2]
[359245802,1745866242691,-151.0,0.0002015,2]
[359245804,1745866242701,-151.0,0.0002015,2]
[359245805,1745866242710,-151.0,0.0002015,2]
[359245806,1745866242720,-151.0,0.0002015,2]
[359245807,1745866242729,-151.0,0.00020151,2]
[359245808,1745866242739,-151.0,0.00020151,2]
[359245809,1745866242748,-151.0,0.00020152,2]
[359245810,1745866242757,-160.602448,0.00020161,2]
[359245812,1745866242767,-160.602448,0.00020161,2]
[359245813,1745866242776,-151.0,0.00020161,2]
[359245814,1745866242785,-151.0,0.00020161,2]
[359245815,1745866242795,-440.336942,0.00020161,2]
[359245816,1745866242804,-440.336942,0.00020161,2]
[359245817,1745866242813,-151.0,0.00020161,2]
[359245818,1745866242823,-3560.8847095,0.00020161,2]
[359245819,1745866242833,-551.0,0.00020164,2]
[359245820,1745866242842,-507.0,0.00020164,2]
[359245821,1745866242851,-500.0,0.00020164,2]
[359245822,1745866242860,-500.0,0.00020164,2]
[359245823,1745866242870,-508.12496352,0.00020173,2]
[359245824,1745866242879,-500.0,0.00020173,2]
[359245825,1745866242888,-154.48252298,0.00020173,2]
[359245826,1745866242898,-306.59316397,0.00020173,2]
[359245827,1745866242907,-500.0,0.00020173,2]
[359245828,1745866242917,-506.72470226,0.00020173,2]
[359245829,1745866242927,-500.0,0.00020173,2]
[359245830,1745866242937,-505.94225289,0.00020173,2]
[359245831,1745866242946,-502.44539025,0.00020173,2]
[359245832,1745866242957,-500.0,0.00020173,2]
[359245833,1745866242967,-207.49766163,0.00020173,2]
[359245834,1745866242977,-500.0,0.00020173,2]
[359245835,1745866242986,-161.1858119,0.00020173,2]
[359245836,1745866242996,-264.16822317,0.00020173,2]
[359245837,1745866243006,-156.10421205,0.00020173,2]
[359245838,1745866243015,-500.0,0.00020173,2]
[359245839,1745866243024,-500.0,0.00020173,2]
[359245840,1745866243034,-500.0,0.00020173,2]
[359245841,1745866243044,-500.0,0.00020173,2]
[359245842,1745866243055,-151.0,0.00020173,2]
[359245843,1745866243065,-151.0,0.00020173,2]
[359245844,1745866243074,-270.723221,0.00020173,2]
[359245845,1745866243084,-151.0,0.00020173,2]
[359245846,1745866243094,-151.0,0.00020173,2]
[359245847,1745866243102,-207.06778,0.00020173,2]
[359245848,1745866243111,-151.0,0.00020173,2]
[359245849,1745866243120,-151.0,0.00020173,2]
[359245850,1745866243129,-151.0,0.00020173,2]
[359245851,1745866243139,-151.0,0.00020173,2]
[359245852,1745866243149,-151.0,0.00020173,2]
[359245853,1745866243158,-155.34335,0.00020173,2]
[359245854,1745866243167,-153.888198,0.00020173,2]
[359245855,1745866243177,-151.0,0.00020173,2]
[359245856,1745866243186,-151.0,0.00020173,2]
[359245857,1745866243196,-151.0,0.00020173,2]
[359245858,1745866243206,-201.292243,0.00020173,2]
[359245859,1745866243215,-286.131787,0.00020173,2]
[359245860,1745866243225,-286.131787,0.00020173,2]
[359245861,1745866243234,-151.0,0.00020173,2]
[359245862,1745866243243,-168.280264,0.00020173,2]
[359245863,1745866243252,-151.0,0.00020173,2]
[359245864,1745866243262,-151.0,0.00020173,2]
[359245865,1745866243272,-151.0,0.00020173,2]
[359245866,1745866243281,-151.0,0.00020173,2]
[359245867,1745866243291,-155.274088,0.00020173,2]
[359245868,1745866243300,-151.0,0.00020173,2]
[359245869,1745866243309,-151.0,0.00020173,2]
[359245870,1745866243319,-152.573775,0.00020173,2]
[359245871,1745866243328,-151.0,0.00020173,2]
[359245872,1745866243338,-151.0,0.00020173,2]
[359245873,1745866243347,-151.0,0.00020173,2]
[359245874,1745866243357,-326.341872,0.00020173,2]
[359245875,1745866243366,-151.0,0.00020173,2]
[359245876,1745866243375,-151.0,0.00020173,2]
[359245877,1745866243384,-1188.019705,0.00020173,2]
[359245878,1745866243395,-1188.019705,0.00020173,2]
[359245879,1745866243405,-1206.049162,0.00020173,2]
[359245880,1745866243415,-1206.049162,0.00020173,2]
[359245881,1745866243426,-315.183375,0.00020173,2]
[359245882,1745866243438,-315.183375,0.00020173,2]
[359245883,1745866243448,-151.0,0.00020173,2]
[359245884,1745866243458,-151.0,0.00020173,2]
[359245885,1745866243468,-151.0,0.00020173,2]
[359245886,1745866243478,-151.0,0.00020173,2]
[359245887,1745866243487,-576.293766,0.00020173,2]
[359245888,1745866243496,-576.293766,0.00020173,2]
[359245889,1745866243505,-657.855454,0.00020173,2]
[359245890,1745866243514,-657.855454,0.00020173,2]
[359245891,1745866243525,-203.400619,0.00020173,2]
[359245892,1745866243535,-203.400619,0.00020173,2]
[359245893,1745866243545,-151.0,0.00020173,2]
[359245894,1745866243652,-500.0,0.00020179,2]
[359245895,1745866243663,-500.0,0.00020179,2]
[359245896,1745866243672,-500.0,0.00020179,2]
[359245897,1745866243681,-500.0,0.00020179,2]
[359245898,1745866243690,-500.0,0.00020179,2]
[359245899,1745866243700,-500.0,0.00020179,2]
[359245900,1745866243709,-500.0,0.00020179,2]
[359245901,1745866243718,-300.0,0.00020179,2]
[359245902,1745866243728,-500.0,0.00020179,2]
[359245903,1745866243737,-151.0,0.00020179,2]
[359245904,1745866243747,-157.668933,0.00020179,2]
[359245905,1745866243756,-271.055786,0.00020179,2]
[359245906,1745866243765,-151.0,0.00020179,2]
[359245907,1745866243775,-151.0,0.00020179,2]
[359245908,1745866243784,-151.0,0.00020179,2]
[359245909,1745866243794,-151.0,0.00020179,2]
[359245910,1745866243804,-151.0,0.00020179,2]
[359245911,1745866243814,-151.0,0.00020179,2]
[359245912,1745866243824,-151.0,0.00020179,2]
[359245913,1745866243834,-151.0,0.00020179,2]
[359245914,1745866243844,-151.0,0.00020179,2]
[359245915,1745866243853,-151.0,0.00020179,2]
[359245916,1745866243863,-151.0,0.00020179,2]
[359245917,1745866243873,-151.0,0.00020179,2]
[359245918,1745866243882,-150.0,0.00020179,2]
[359245919,1745866243892,-314644.65493943,0.0002018,2]
[359245920,1745866243901,-93042.89728592,0.0002018,2]
[359245921,1745866243911,-244.0,0.0002018,2]
[359245922,1745866243920,-210.0,0.0002018,2]
[359245923,1745866243929,-151.0,0.0002018,2]
[359245924,1745866243939,-151.0,0.0002018,2]
[359245925,1745866243948,-153.446622,0.0002018,2]
[359245926,1745866243957,-151.0,0.0002018,2]
[359245927,1745866243967,-151.0,0.0002018,2]
[359245928,1745866243977,-151.0,0.0002018,2]
[359245929,1745866243986,-151.0,0.0002018,2]
[359245930,1745866243996,-151.0,0.0002018,2]
[359245931,1745866244005,-151.0,0.0002018,2]
[359245932,1745866244015,-151.0,0.0002018,2]
[359245933,1745866244026,-151.0,0.0002018,2]
[359245934,1745866244036,-151.0,0.0002018,2]
[359245935,1745866244045,-178.711393,0.0002018,2]
[359245936,1745866244057,-151.0,0.0002018,2]
[359245937,1745866244067,-155.029385,0.0002018,2]
[359245938,1745866244076,-151.0,0.0002018,2]
[359245939,1745866244086,-151.0,0.0002018,2]
[359245940,1745866244095,-151.0,0.0002018,2]
[359245941,1745866244105,-151.0,0.0002018,2]
[359245942,1745866244114,-162.213892,0.0002018,2]
[359245943,1745866244124,-152.238841,0.0002018,2]
[359245944,1745866244136,-151.0,0.0002018,2]
[359245945,1745866244146,-222.827813,0.0002018,2]
[359245946,1745866244156,-151.0,0.0002018,2]
[359245947,1745866244166,-151.0,0.0002018,2]
[359245948,1745866244175,-151.0,0.0002018,2]
[359245949,1745866244185,-151.0,0.0002018,2]
[359245950,1745866244194,-151.0,0.0002018,2]
[359245951,1745866244204,-151.0,0.0002018,2]
[359245952,1745866244214,-151.0,0.0002018,2]
[359245953,1745866244224,-153.304826,0.0002018,2]
[359245954,1745866244234,-151.0,0.0002018,2]
[359245955,1745866244243,-151.0,0.0002018,2]
[359245956,1745866244254,-151.0,0.0002018,2]
[359245957,1745866244265,-151.0,0.0002018,2]
[359245958,1745866244275,-151.0,0.0002018,2]
[359245959,1745866244285,-151.0,0.0002018,2]
[359245960,1745866244295,-151.0,0.0002018,2]
[359245961,1745866244304,-151.0,0.0002018,2]
[359245962,1745866244314,-153.161249,0.0002018,2]
[359245963,1745866244323,-151.0,0.0002018,2]
[359245964,1745866244333,-286.131787,0.0002018,2]
[359245965,1745866244351,-286.131787,0.0002018,2]
[359245966,1745866244366,-151.0,0.0002018,2]
[359245967,1745866244386,-151.0,0.0002018,2]
[359245968,1745866244404,-204.04967,0.0002018,2]
[359245969,1745866244419,-151.0,0.0002018,2]
[359245970,1745866244437,-151.0,0.0002018,2]
[359245971,1745866244455,-151.0,0.0002018,2]
[359245972,1745866244472,-151.0,0.0002018,2]
[359245973,1745866244490,-151.0,0.0002018,2]
[359245974,1745866244508,-151.0,0.0002018,2]
[359245975,1745866244526,-326.341872,0.0002018,2]
[359245976,1745866244542,-151.0,0.0002018,2]
[359245977,1745866244554,-151.0,0.0002018,2]
[359245978,1745866244574,-1188.019705,0.0002018,2]
[359245979,1745866244586,-1188.019705,0.0002018,2]
[359245980,1745866244606,-1206.049162,0.0002018,2]
[359245981,1745866244619,-1206.049162,0.0002018,2]
[359245982,1745866244635,-315.183375,0.0002018,2]
[359245983,1745866244649,-315.183375,0.0002018,2]
[359245984,1745866244665,-151.0,0.0002018,2]
[359245985,1745866244679,-151.0,0.0002018,2]
[359245986,1745866244694,-151.0,0.0002018,2]
[359245987,1745866244710,-576.293766,0.0002018,2]
[359245988,1745866244725,-576.293766,0.0002018,2]
[359245989,1745866244740,-657.855454,0.0002018,2]
[359245990,1745866244756,-657.855454,0.0002018,2]
[359245991,1745866244771,-160.602448,0.0002018,2]
[359245992,1745866244786,-160.602448,0.0002018,2]
[359245993,1745866244801,-151.0,0.0002018,2]
[359245994,1745866244815,-203.400619,0.0002018,2]
[359245995,1745866244830,-203.400619,0.0002018,2]
[359245996,1745866244845,-151.0,0.0002018,2]
[359245997,1745866244860,-151.0,0.0002018,2]
[359245998,1745866244875,-151.0,0.0002018,2]
[359245999,1745866244889,-151.0,0.0002018,2]
[359246000,1745866244903,-440.336942,0.0002018,2]
[359246001,1745866244918,-440.336942,0.0002018,2]
[359246002,1745866244932,-151.0,0.0002018,2]
[359246003,1745866244947,-151.0,0.0002018,2]
[359246004,1745866244962,-151.0,0.0002018,2]
[359246005,1745866244976,-151.0,0.0002018,2]
[359246006,1745866244991,-151.0,0.0002018,2]
[359246007,1745866245006,-151.0,0.0002018,2]
[359246008,1745866245022,-151.0,0.0002018,2]
[359246009,1745866245036,-151.0,0.0002018,2]
[359246010,1745866245051,-155.890591,0.0002018,2]
[359246011,1745866245068,-151.0,0.0002018,2]
[359246012,1745866245082,-551.0,0.00020192,2]
[359246013,1745866245097,-507.0,0.00020192,2]
[359246014,1745866245112,-500.0,0.00020192,2]
[359246015,1745866245127,-500.0,0.00020192,2]
[359246016,1745866245144,-915.43,0.000202,2]
[359246017,1745866245159,-153.98,0.000202,2]
[359246018,1745866245174,-800.38,0.000202,2]
[359246019,1745866245190,-151.0,0.000202,2]
[359246020,1745866245205,-151.0,0.000202,2]
[359246021,1745866245220,-151.0,0.000202,2]
[359246022,1745866245235,-151.0,0.000202,2]
[359246023,1745866245249,-151.0,0.000202,2]
[359246024,1745866245264,-151.0,0.000202,2]
[359246025,1745866245280,-286.131787,0.000202,2]
[359246026,1745866245295,-286.131787,0.000202,2]
[359246027,1745866245310,-151.0,0.000202,2]
[359246028,1745866245325,-151.0,0.000202,2]
[359246029,1745866245340,-151.0,0.000202,2]
[359246030,1745866245356,-151.0,0.000202,2]
[359246031,1745866245371,-151.0,0.000202,2]
[359246032,1745866245386,-151.0,0.000202,2]
[359246033,1745866245403,-326.341872,0.000202,2]
[359246034,1745866245418,-151.0,0.000202,2]
[359246035,1745866245433,-266.896654,0.000202,2]
[359246036,1745866245595,-1188.019705,0.000202,2]
[359246037,1745866245605,-1188.019705,0.000202,2]
[359246038,1745866245615,-1206.049162,0.000202,2]
[359246039,1745866245625,-1206.049162,0.000202,2]
[359246040,1745866245635,-315.183375,0.000202,2]
[359246041,1745866245644,-315.183375,0.000202,2]
[359246042,1745866245653,-151.0,0.000202,2]
[359246043,1745866245662,-151.0,0.000202,2]
[359246044,1745866245672,-151.0,0.000202,2]
[359246045,1745866245682,-576.293766,0.000202,2]
[359246046,1745866245691,-576.293766,0.000202,2]
[359246047,1745866245701,-657.855454,0.000202,2]
[359246048,1745866245710,-657.855454,0.000202,2]
[359246049,1745866245720,-160.602448,0.000202,2]
[359246050,1745866245730,-160.602448,0.000202,2]
[359246051,1745866245739,-151.0,0.000202,2]
[359246052,1745866245749,-203.400619,0.000202,2]
[359246053,1745866245759,-203.400619,0.000202,2]
[359246054,1745866245768,-151.0,0.000202,2]
[359246055,1745866245778,-253.432125,0.000202,2]
[359246056,1745866245787,-159.071421,0.000202,2]
[359246057,1745866245797,-440.336942,0.000202,2]
[359246058,1745866245806,-440.336942,0.000202,2]
[359246059,1745866245816,-151.0,0.000202,2]
[359246060,1745866245825,-151.0,0.000202,2]
[359246061,1745866245835,-274.68332,0.000202,2]
[359246062,1745866245844,-151.0,0.000202,2]
[359246063,1745866245854,-151.0,0.000202,2]
[359246064,1745866245863,-151.0,0.000202,2]
[359246065,1745866245873,-151.0,0.000202,2]
[359246066,1745866245882,-151.0,0.00020219,2]
[359246067,1745866245891,-168.035566,0.00020219,2]
[359246068,1745866245902,-151.0,0.00020219,2]
[359246069,1745866245911,-151.0,0.00020219,2]
[359246070,1745866245921,-289.22242,0.00020219,2]
[359246071,1745866245931,-151.0,0.00020219,2]
[359246072,1745866245940,-234.276183,0.00020219,2]
[359246073,1745866245950,-185.814516,0.00020219,2]
[359246074,1745866245959,-151.0,0.00020219,2]
[359246075,1745866245969,-151.0,0.00020219,2]
[359246076,1745866245979,-151.0,0.00020219,2]
[359246077,1745866245988,-151.0,0.00020219,2]
[359246078,1745866245998,-551.0,0.00020219,2]
[359246079,1745866246007,-507.0,0.00020219,2]
[359246080,1745866246017,-500.0,0.00020219,2]
[359246081,1745866246028,-500.0,0.00020219,2]
[359246082,1745866246037,-151.0,0.00020236,2]
[359246083,1745866246047,-151.0,0.00020237,2]
[359246084,1745866246059,-151.0,0.0002024,2]
[359246085,1745866246068,-151.0,0.0002024,2]
[359246086,1745866246079,-151.0,0.00020244,2]
[359246087,1745866246089,-551.0,0.00020247,2]
[359246088,1745866246099,-507.0,0.00020247,2]
[359246089,1745866246108,-500.0,0.00020247,2]
[359246090,1745866246118,-500.0,0.00020247,2]
[359246091,1745866246128,-151.0,0.00020247,2]
[359246092,1745866246138,-151.0,0.00020247,2]
[359246093,1745866246147,-162.552599,0.00020247,2]
[359246094,1745866246157,-153.256553,0.00020247,2]
[359246095,1745866246167,-151.0,0.00020247,2]
[359246096,1745866246177,-151.0,0.00020247,2]
[359246097,1745866246187,-178.711393,0.00020247,2]
[359246098,1745866246196,-151.0,0.00020247,2]
[359246099,1745866246206,-151.0,0.00020253,2]
[359246100,1745866246216,-551.0,0.00020274,2]
[359246101,1745866246225,-507.0,0.00020274,2]
[359246102,1745866246235,-500.0,0.00020274,2]
[359246103,1745866246244,-500.0,0.00020274,2]
[359246104,1745866246254,-551.0,0.00020301,2]
[359246105,1745866246263,-507.0,0.00020301,2]
[359246106,1745866246274,-500.0,0.00020301,2]
[359246107,1745866246284,-500.0,0.00020301,2]
[359246108,1745866246294,-203.86,0.0002031,2]
[359246109,1745866246304,-551.0,0.00020329,2]
[359246110,1745866246314,-507.0,0.00020329,2]
[359246111,1745866246323,-500.0,0.00020329,2]
[359246112,1745866246334,-500.0,0.00020329,2]
[359246113,1745866246343,-156.584175,0.00020356,2]
[359246114,1745866246353,-153.422974,0.00020356,2]
[359246115,1745866246363,-551.0,0.00020356,2]
[359246116,1745866246372,-507.0,0.00020356,2]
[359246117,1745866246383,-500.0,0.00020356,2]
[359246118,1745866246392,-500.0,0.00020356,2]
[359246119,1745866246402,-551.0,0.00020384,2]
[359246120,1745866246412,-507.0,0.00020384,2]
[359246121,1745866246421,-308.14456439,0.00020384,2]
[359246122,1745866246431,-500.0,0.00020384,2]
[359246123,1745866246440,-551.0,0.00020411,2]
[359246124,1745866246450,-507.0,0.00020411,2]
[359246125,1745866246459,-500.0,0.00020411,2]
[359246126,1745866246469,-551.0,0.00020438,2]
[359246127,1745866246479,-507.0,0.00020438,2]
[359246128,1745866246488,-500.0,0.00020438,2]
[359246130,1745866246498,-551.0,0.00020466,2]
[359246132,1745866246508,-507.0,0.00020466,2]
[359246134,1745866246518,-340.85530564,0.00020466,2]
[359246136,1745866246528,-300.0,0.0002048,2]
[359246138,1745866246538,-174.13,0.00020482,2]
[359246140,1745866246547,-551.0,0.00020493,2]
[359246142,1745866246557,-507.0,0.00020493,2]
[359246144,1745866246566,-200.0,0.0002051,2]
[359246146,1745866246576,-551.0,0.00020521,2]
[359246148,1745866246586,-507.0,0.00020521,2]
[359246149,1745866246595,-209.334159,0.00020548,2]
[359246151,1745866246605,-20705.61,0.00020548,2]
[359246152,1745866246615,-551.0,0.00020548,2]
[359246153,1745866246625,-507.0,0.00020548,2]
[359246154,1745866246634,-151.0,0.00020548,2]
[359246155,1745866246644,-151.0,0.00020548,2]
[359246156,1745866246653,-151.0,0.00020548,2]
[359246157,1745866246662,-551.0,0.00020575,2]
[359246158,1745866246671,-507.0,0.00020575,2]
[359246159,1745866246681,-551.0,0.00020603,2]
[359246160,1745866246693,-507.0,0.00020603,2]
[359246161,1745866246702,-562.74717219,0.0002063,2]
[359246162,1745866246711,-527.54032129,0.0002063,2]
[359246163,1745866246721,-21913.41943796,0.000207,2]
[359246164,1745866246731,-200.0,0.0002071,2]
[359246165,1745866246742,-176.16,0.00020718,2]
[359246166,1745866246753,-301.32,0.00020767,2]
[359246167,1745866246764,-1307.0964753,0.00020797,3]
[359246168,1745866246773,-7987.84,0.00020822,2]
[359246169,1745866246783,-200.0,0.0002091,2]
[359246170,1745866246792,-999.99,0.00020951,2]
[359246171,1745866246802,-299.99,0.00020951,7]
[359246172,1745866246811,-1010.04,0.00020951,2]
[359246173,1745866246820,-150.99,0.00020951,2]
[359246174,1745866246830,-150.99,0.00020951,2]
[359246175,1745866246839,-500.0,0.00020973,2]
[359246176,1745866246850,-501.4624149,0.00020973,2]
[359246177,1745866246862,-500.95105895,0.00020973,2]
[359246178,1745866246872,-500.0,0.00020999,2]
[359246179,1745866246881,-200.0,0.00021,2]
[359246180,1745866246892,-20000.0,0.00021,2]
[359246181,1745866246902,-1154.1389208,0.00021,2]
[359246182,1745866246912,-190.48490281,0.00021,2]
[359246183,1745866246922,-2402.70306683,0.00021,2]
[359246184,1745866246935,-40000.0,0.00021,3]
[359246185,1745866246946,-151.0,0.00021,2]
[359246186,1745866246956,-152.523711,0.00021,2]
[359246187,1745866246967,-151.0,0.00021,2]
[359246188,1745866246976,-151.0,0.00021,2]
[359246189,1745866246986,-350.0,0.00021,2]
[359246190,1745866246995,-178.711393,0.00021,2]
[359246191,1745866247005,-151.0,0.00021,2]
[359246192,1745866247015,-151.0,0.00021,2]
[359246193,1745866247025,-151.0,0.00021,2]
[359246194,1745866247034,-151.0,0.00021,2]
[359246195,1745866247044,-151.0,0.00021,2]
[359246196,1745866247054,-151.0,0.00021,2]
[359246197,1745866247067,-151.0,0.00021,2]
[359246198,1745866247076,-151.0,0.00021,2]
[359246199,1745866247085,-151.0,0.00021,2]
[359246200,1745866247095,-151.0,0.00021,2]
[359246201,1745866247106,-151.0,0.00021,2]
[359246202,1745866247115,-151.0,0.00021,2]
[359246203,1745866247125,-286.131787,0.00021,2]
[359246204,1745866247135,-286.131787,0.00021,2]
[359246205,1745866247145,-151.0,0.00021,2]
[359246206,1745866247154,-151.0,0.00021,2]
[359246207,1745866247164,-151.0,0.00021,2]
[359246208,1745866247174,-151.0,0.00021,2]
[359246209,1745866247184,-151.0,0.00021,2]
[359246210,1745866247194,-326.341872,0.00021,2]
[359246211,1745866247203,-266.65199,0.00021,2]
[359246212,1745866247214,-326.341872,0.00021,2]
[359246213,1745866247224,-151.0,0.00021,2]
[359246214,1745866247234,-1188.019705,0.00021,2]
[359246215,1745866247244,-1188.019705,0.00021,2]
[359246216,1745866247254,-1206.049162,0.00021,2]
[359246217,1745866247264,-1206.049162,0.00021,2]
[359246218,1745866247274,-315.183375,0.00021,2]
[359246219,1745866247283,-315.183375,0.00021,2]
[359246220,1745866247293,-151.0,0.00021,2]
[359246221,1745866247304,-151.0,0.00021,2]
[359246222,1745866247314,-151.0,0.00021,2]
[359246223,1745866247423,-576.293766,0.00021,2]
[359246224,1745866247434,-576.293766,0.00021,2]
[359246225,1745866247443,-657.855454,0.00021,2]
[359246226,1745866247453,-657.855454,0.00021,2]
[359246227,1745866247462,-160.602448,0.00021,2]
[359246228,1745866247474,-160.602448,0.00021,2]
[359246229,1745866247483,-151.0,0.00021,2]
[359246230,1745866247493,-203.400619,0.00021,2]
[359246231,1745866247503,-203.400619,0.00021,2]
[359246232,1745866247513,-151.0,0.00021,2]
[359246233,1745866247524,-440.336942,0.00021,2]
[359246234,1745866247534,-440.336942,0.00021,2]
[359246235,1745866247544,-151.0,0.00021,2]
[359246236,1745866247553,-151.0,0.00021,2]
[359246237,1745866247563,-151.0,0.00021,2]
[359246238,1745866247573,-151.0,0.00021,2]
[359246239,1745866247583,-151.0,0.00021,2]
[359246240,1745866247594,-151.0,0.00021,2]
[359246241,1745866247605,-859.46269958,0.00021001,2]
[359246242,1745866247615,-200.0,0.00021241,2]
[359246243,1745866247625,-174.13,0.00021293,2]
[359246244,1745866247635,-250.0,0.00021295,2]
[359246245,1745866247645,-200.0,0.00021295,2]
[359246246,1745866247655,-200.0,0.00021295,2]
[359246247,1745866247664,-250.0,0.00021295,2]
[359246248,1745866247674,-157.17,0.00021299,2]
[359246249,1745866247684,-215.0738,0.00021322,2]
[359246250,1745866247694,-5118.51,0.0002137,2]
[359246251,1745866247704,-2331.84,0.00021394,2]
[359246252,1745866247714,-450.92,0.00021394,2]
[359246253,1745866247723,-327.87,0.00021394,2]
[359246254,1745866247734,-450.92,0.00021394,2]
[359246255,1745866247744,-449.75,0.00021394,2]
[359246256,1745866247754,-481.86,0.00021395,2]
[359246257,1745866247765,-500.0,0.0002142,2]
[359246258,1745866247776,-500.0,0.00021427,2]
[359246259,1745866247786,-500.0,0.00021427,2]
[359246260,1745866247795,-500.0,0.00021427,2]
[359246261,1745866247804,-500.0,0.00021469,2]
[359246262,1745866247814,-500.0,0.00021469,2]
[359246263,1745866247823,-500.0,0.00021469,2]
[359246264,1745866247833,-500.4062615,0.00021469,2]
[359246265,1745866247843,-500.0,0.00021469,2]
[359246266,1745866247854,-500.0,0.00021469,2]
[359246267,1745866247866,-505.10149505,0.00021469,2]
[359246268,1745866247876,-500.0,0.00021469,2]